bitfinex/quotes_BTCUSD_20230111
["timestamp","ask_amount","ask_price","bid_price","bid_amount"]
[1673435380782,0.6437,17444.0,17443.0,0.02192708]
[1673435381021,4.17845629,17444.0,17443.0,0.02192708]
[1673435382075,4.17845629,17444.0,17443.0,0.02692708]
[1673435382076,4.25945629,17444.0,17443.0,0.02692708]
[1673435382907,4.51045625,17444.0,17443.0,0.02692708]
[1673435383459,4.23877524,17444.0,17443.0,0.02692708]
[1673435384467,4.75328811,17444.0,17443.0,0.02692708]
[1673435384766,4.51037829,17444.0,17443.0,0.02692708]
[1673435384972,4.51004231,17444.0,17443.0,0.02692708]
[1673435385765,4.56741799,17444.0,17443.0,0.02692708]
[1673435386663,5.02116875,17444.0,17443.0,0.02692708]
[1673435386912,4.56741799,17444.0,17443.0,0.02692708]
[1673435387395,5.09563175,17444.0,17443.0,0.02692708]
[1673435387686,4.56741799,17444.0,17443.0,0.02692708]
[1673435388742,5.06786053,17444.0,17443.0,0.02692708]
[1673435389204,4.56741799,17444.0,17443.0,0.02692708]
[1673435389741,5.02583466,17444.0,17443.0,0.02692708]
[1673435390010,4.56741799,17444.0,17443.0,0.02692708]
[1673435390521,4.99243393,17444.0,17443.0,0.02692708]
[1673435390750,4.51004231,17444.0,17443.0,0.02692708]
[1673435391518,5.0795409,17444.0,17443.0,0.02692708]
[1673435392282,4.51004231,17444.0,17443.0,0.02692708]
[1673435393304,5.01257092,17444.0,17443.0,0.02692708]
[1673435394362,4.17095805,17444.0,17443.0,0.02692708]
[1673435394624,2.61450904,17444.0,17443.0,0.02692708]
[1673435394881,2.27080904,17444.0,17443.0,0.02692708]
[1673435395128,2.5019893,17444.0,17443.0,0.02692708]
[1673435395381,2.33050402,17444.0,17443.0,0.02692708]
[1673435396152,2.59547896,17444.0,17443.0,0.02692708]
[1673435396668,2.75933057,17444.0,17443.0,0.02692708]
[1673435396917,2.75935181,17444.0,17443.0,0.02692708]
[1673435397168,2.5104893,17444.0,17443.0,0.02692708]
[1673435397424,2.76784937,17444.0,17443.0,0.02692708]
[1673435397686,2.33902239,17444.0,17443.0,0.02692708]
[1673435398703,2.5104893,17444.0,17443.0,0.02692708]
[1673435399210,2.76786524,17444.0,17443.0,0.02692708]
[1673435399687,2.33903826,17444.0,17443.0,0.02692708]
[1673435401440,2.33701026,17444.0,17443.0,0.02692708]
[1673435403951,2.16547779,17444.0,17443.0,0.02692708]
[1673435404691,2.33701026,17444.0,17443.0,0.02692708]
[1673435405457,1.66292081,17444.0,17443.0,0.02692708]
[1673435405715,1.39704487,17444.0,17443.0,0.63350498]
[1673435406723,1.39704487,17444.0,17443.0,0.99245998]
[1673435407008,1.39704487,17444.0,17443.0,0.63350498]
[1673435407550,1.225498,17444.0,17443.0,0.63350498]
[1673435410176,1.225498,17444.0,17443.0,0.99245998]
[1673435410469,1.225498,17444.0,17443.0,0.63350498]
[1673435411455,0.652235,17444.0,17443.0,0.63350498]
[1673435411707,0.652235,17444.0,17443.0,0.99245998]
[1673435411965,0.652235,17444.0,17443.0,0.63350498]
[1673435412734,1.225498,17444.0,17443.0,0.79770498]
[1673435417621,1.240498,17444.0,17443.0,0.79770498]
[1673435417878,0.667235,17444.0,17443.0,0.79770498]
[1673435419910,0.667235,17444.0,17443.0,1.15665998]
[1673435420691,0.096,17444.0,17443.0,1.15665998]
[1673435424975,0.096,17444.0,17443.0,1.32035998]
[1673435428522,0.015,17444.0,17443.0,1.31535998]
[1673435428780,0.029,17444.0,17443.0,1.36235998]
[1673435429859,1.57086452,17446.0,17444.0,0.014]
[1673435430113,1.57086452,17446.0,17445.0,0.523155]
[1673435430623,1.57086452,17446.0,17445.0,0.24160846]
[1673435430895,1.57886452,17446.0,17445.0,0.24160846]
[1673435431143,1.57086452,17446.0,17445.0,0.24160846]
[1673435431394,1.58386452,17446.0,17445.0,0.24460846]
[1673435434820,1.01064552,17446.0,17445.0,0.24460846]
[1673435436132,1.01064552,17446.0,17445.0,0.08040846]
[1673435437696,1.01064552,17446.0,17445.0,0.80263704]
[1673435440201,1.58384252,17446.0,17445.0,0.80263704]
[1673435441217,1.75538939,17446.0,17445.0,0.80263704]
[1673435441478,1.58384252,17446.0,17445.0,0.80263704]
[1673435454191,1.58384252,17446.0,17445.0,0.80281135]
[1673435454434,1.58384252,17446.0,17445.0,0.80263704]
[1673435460222,1.58384252,17446.0,17445.0,1.94953234]
[1673435460478,1.58384252,17446.0,17445.0,2.30848731]
[1673435463526,1.58384252,17446.0,17445.0,2.12136688]
[1673435463781,1.58384252,17446.0,17445.0,2.48032188]
[1673435464532,1.58384252,17446.0,17445.0,2.12136688]
[1673435465048,1.58384252,17446.0,17445.0,2.48032188]
[1673435466345,1.58384252,17446.0,17445.0,2.12136688]
[1673435466346,1.01062052,17446.0,17445.0,2.12136688]
[1673435466615,1.01062052,17446.0,17445.0,2.48032188]
[1673435466877,1.01052196,17446.0,17445.0,2.48032188]
[1673435467636,0.17154687,17448.0,17446.0,0.46576987]
[1673435467931,0.17154687,17448.0,17447.0,1.50585027]
[1673435468419,0.17154687,17448.0,17447.0,0.358955]
[1673435468678,1.54059338,17449.0,17446.0,1.35976071]
[1673435468939,1.54059338,17449.0,17447.0,1.14675683]
[1673435469228,1.54059338,17449.0,17446.0,1.35976071]
[1673435469484,1.54059338,17449.0,17447.0,1.14674956]
[1673435470009,0.12,17448.0,17447.0,1.15274956]
[1673435470263,1.96667596,17449.0,17447.0,1.14674956]
[1673435470599,2.12569238,17449.0,17447.0,0.062]
[1673435470802,2.53977496,17449.0,17446.0,1.5214286]
[1673435471040,0.47154687,17448.0,17446.0,1.04951226]
[1673435471303,1.04467987,17448.0,17446.0,1.04951226]
[1673435471829,1.05667987,17448.0,17447.0,0.062]
[1673435472088,1.04467987,17448.0,17446.0,1.34951226]
[1673435472333,0.75667987,17448.0,17446.0,1.41151226]
[1673435472588,0.585133,17448.0,17446.0,1.11151226]
[1673435472840,1.05667987,17448.0,17446.0,1.11151226]
[1673435473126,0.75667987,17448.0,17447.0,0.00017429]
[1673435473367,0.585133,17448.0,17446.0,1.41151226]
[1673435473615,0.75667987,17448.0,17446.0,1.11151226]
[1673435474103,1.60578126,17448.0,17446.0,1.11151226]
[1673435474360,1.8631572,17448.0,17446.0,1.11151226]
[1673435474680,2.5884882,17448.0,17446.0,0.46576987]
[1673435474905,0.3,17447.0,17446.0,0.46576987]
[1673435475161,1.446328,17447.0,17446.0,0.46576987]
[1673435475419,1.61787487,17447.0,17446.0,0.52776987]
[1673435475935,1.61787487,17447.0,17446.0,0.46576987]
[1673435475936,1.446328,17447.0,17446.0,0.46576987]
[1673435475937,1.446328,17447.0,17446.0,0.52776987]
[1673435476193,1.32987487,17447.0,17446.0,0.52776987]
[1673435476452,1.158328,17447.0,17446.0,0.52776987]
[1673435479314,1.32987487,17447.0,17446.0,0.52776987]
[1673435484672,2.29469603,17447.0,17446.0,0.52776987]
[1673435484896,2.87977197,17447.0,17446.0,0.52776987]
[1673435485118,3.05133281,17447.0,17446.0,0.52776987]
[1673435486086,3.22278385,17447.0,17446.0,0.52776987]
[1673435487398,3.371065,17447.0,17446.0,0.52776987]
[1673435487648,3.22278385,17447.0,17446.0,0.52776987]
[1673435487865,3.37106236,17447.0,17446.0,0.52776987]
[1673435489216,2.78921607,17447.0,17446.0,0.52776987]
[1673435489437,2.71934409,17447.0,17446.0,0.52776987]
[1673435489659,3.24663202,17447.0,17446.0,0.52776987]
[1673435489890,3.31658824,17447.0,17446.0,0.52776987]
[1673435490188,3.01658824,17447.0,17446.0,0.52776987]
[1673435490618,3.00458824,17447.0,17446.0,0.46576987]
[1673435490840,3.01858824,17447.0,17446.0,0.51676987]
[1673435491017,3.01858824,17447.0,17446.0,0.46576987]
[1673435491276,3.00458824,17447.0,17446.0,0.46576987]
[1673435491497,3.07858824,17447.0,17446.0,0.47176987]
[1673435491718,3.37858824,17447.0,17446.0,0.47176987]
[1673435491910,3.32121256,17447.0,17446.0,0.47165515]
[1673435492332,3.38016756,17447.0,17446.0,0.47165515]
[1673435492580,3.68016756,17447.0,17446.0,0.47165515]
[1673435495412,3.7230601,17447.0,17446.0,0.47165515]
[1673435495646,3.68016756,17447.0,17446.0,0.47165515]
[1673435495870,3.96677756,17447.0,17446.0,0.47165515]
[1673435496353,4.30963902,17447.0,17446.0,0.47165515]
[1673435498041,4.35052792,17447.0,17446.0,0.47165515]
[1673435499795,4.05052792,17447.0,17446.0,0.47165515]
[1673435500091,4.35052792,17447.0,17446.0,0.47165515]
[1673435500285,4.05052792,17447.0,17446.0,0.47165515]
[1673435500813,4.35052792,17447.0,17446.0,0.47165515]
[1673435502540,3.53775421,17447.0,17446.0,0.47165515]
[1673435502764,3.9440228,17447.0,17446.0,0.47165515]
[1673435503018,3.98673057,17447.0,17446.0,0.47165515]
[1673435503740,4.00012057,17447.0,17446.0,0.47165515]
[1673435503984,4.28673057,17447.0,17446.0,0.47165515]
[1673435505218,3.98673057,17447.0,17446.0,0.47165515]
[1673435506496,3.83845206,17447.0,17446.0,0.47165515]
[1673435507538,3.55184206,17447.0,17446.0,0.47165515]
[1673435507795,3.83845206,17447.0,17446.0,0.47165515]
[1673435508279,3.98252701,17447.0,17446.0,0.47165515]
[1673435512737,3.86011701,17447.0,17446.0,0.47165515]
[1673435512989,4.14671701,17447.0,17446.0,0.47165515]
[1673435514028,3.86011701,17447.0,17446.0,0.47165515]
[1673435514291,4.14671701,17447.0,17446.0,0.47165515]
[1673435514530,3.51734617,17447.0,17446.0,0.47165515]
[1673435514787,3.80394617,17447.0,17446.0,0.47165515]
[1673435515515,3.51734617,17447.0,17446.0,0.47165515]
[1673435515769,3.80394617,17447.0,17446.0,0.47165515]
[1673435516263,4.10394617,17447.0,17446.0,0.47165515]
[1673435516750,4.10387314,17447.0,17446.0,0.47165515]
[1673435516977,4.10387215,17447.0,17446.0,0.47165515]
[1673435517686,3.80387215,17447.0,17446.0,0.47165515]
[1673435517931,4.10387215,17447.0,17446.0,0.47165515]
[1673435518188,3.80387215,17447.0,17446.0,0.47165515]
[1673435518431,3.67503495,17447.0,17446.0,0.47165515]
[1673435519179,3.37503495,17447.0,17446.0,0.47165515]
[1673435519928,3.67503495,17447.0,17446.0,0.47165515]
[1673435521419,4.18954782,17447.0,17446.0,0.47165515]
[1673435522652,4.02534782,17447.0,17446.0,0.47165515]
[1673435524135,4.02534782,17447.0,17446.0,0.47158471]
[1673435528893,3.66139282,17447.0,17446.0,0.47158471]
[1673435529154,4.02034782,17447.0,17446.0,0.47158471]
[1673435532784,4.18454782,17447.0,17446.0,0.47158471]
[1673435544375,4.18454782,17447.0,17446.0,0.006]
[1673435545386,4.18456782,17447.0,17446.0,0.006]
[1673435551220,4.18445797,17447.0,17446.0,0.006]
[1673435554919,3.89783797,17447.0,17446.0,0.006]
[1673435555174,4.18444797,17447.0,17446.0,0.006]
[1673435556188,4.02024797,17447.0,17446.0,0.006]
[1673435556898,3.37468297,17447.0,17446.0,0.006]
[1673435557403,3.66129297,17447.0,17446.0,0.006]
[1673435557649,4.02024797,17447.0,17446.0,0.006]
[1673435558398,3.66129297,17447.0,17446.0,0.006]
[1673435560938,4.02024797,17447.0,17446.0,0.006]
[1673435561471,3.73363797,17447.0,17446.0,0.006]
[1673435561742,4.02024797,17447.0,17446.0,0.006]
[1673435563273,3.73363797,17447.0,17446.0,0.006]
[1673435563563,4.02024797,17447.0,17446.0,0.006]
[1673435565331,3.66129297,17447.0,17446.0,0.006]
[1673435565605,4.02024797,17447.0,17446.0,0.006]
[1673435565859,3.66129297,17447.0,17446.0,0.006]
[1673435566150,4.02024797,17447.0,17446.0,0.006]
[1673435566368,3.73363797,17447.0,17446.0,0.006]
[1673435566618,4.02024797,17447.0,17446.0,0.006]
[1673435568423,3.66129297,17447.0,17446.0,0.006]
[1673435568695,4.02024797,17447.0,17446.0,0.006]
[1673435569717,3.66129297,17447.0,17446.0,0.006]
[1673435570049,4.02024797,17447.0,17446.0,0.006]
[1673435572042,4.02025797,17447.0,17446.0,0.006]
[1673435574901,4.02025797,17447.0,17446.0,0.00589844]
[1673435577207,3.66130297,17447.0,17446.0,0.00589844]
[1673435577452,4.02025797,17447.0,17446.0,0.00589844]
[1673435577770,3.66129297,17447.0,17446.0,0.00589844]
[1673435578729,4.02024797,17447.0,17446.0,0.00589844]
[1673435579248,3.66129297,17447.0,17446.0,0.00589844]
[1673435579756,3.14670941,17447.0,17446.0,0.00589844]
[1673435580276,2.84670941,17447.0,17446.0,0.00589844]
[1673435580759,3.2759644,17447.0,17446.0,0.00589844]
[1673435581060,2.84670941,17447.0,17446.0,0.00589844]
[1673435581317,3.27596309,17447.0,17446.0,0.00589844]
[1673435581865,2.17272913,17447.0,17446.0,0.56732175]
[1673435582123,1.5994005,17447.0,17446.0,0.56732175]
[1673435582404,1.85698355,17447.0,17446.0,0.56732175]
[1673435582652,1.68527947,17447.0,17446.0,0.56732175]
[1673435583733,1.42769642,17447.0,17446.0,0.56732175]
[1673435584266,1.25597329,17447.0,17446.0,0.56732175]
[1673435584524,0.1148889,17447.0,17446.0,0.92627675]
[1673435584778,0.1148889,17447.0,17446.0,0.73122175]
[1673435585042,0.1148889,17447.0,17446.0,1.09017675]
[1673435585288,0.1148889,17447.0,17446.0,0.73122175]
[1673435585607,0.1148889,17447.0,17446.0,1.09017675]
[1673435586813,0.1148889,17447.0,17446.0,0.73122175]
[1673435587107,0.1148889,17447.0,17446.0,1.09017675]
[1673435587932,0.1148889,17447.0,17446.0,0.73122175]
[1673435588461,0.1148889,17447.0,17446.0,1.09017675]
[1673435589559,0.1148889,17447.0,17446.0,0.73122175]
[1673435589800,0.1148889,17447.0,17446.0,1.09017675]
[1673435590547,0.1148889,17447.0,17446.0,0.73122175]
[1673435591024,0.1148889,17447.0,17446.0,1.09017675]
[1673435592527,0.1148889,17447.0,17446.0,0.73122175]
[1673435592807,0.1148889,17447.0,17446.0,1.09017675]
[1673435593028,0.1148889,17447.0,17446.0,0.73122175]
[1673435593258,0.1148889,17447.0,17446.0,1.09017675]
[1673435593530,0.1148889,17447.0,17446.0,0.73122175]
[1673435593781,0.6880529,17447.0,17446.0,0.73122175]
[1673435595337,0.6880529,17447.0,17446.0,0.56732175]
[1673435604571,0.1148889,17447.0,17446.0,0.56732175]
[1673435612033,0.6880529,17447.0,17446.0,0.56732175]
[1673435614780,0.1148889,17447.0,17446.0,0.56732175]
[1673435615769,0.6880529,17447.0,17446.0,0.56732175]
[1673435619615,1.98729948,17447.0,17446.0,0.00589844]
[1673435619862,3.24177239,17447.0,17446.0,0.00589844]
[1673435620110,3.9441021,17447.0,17446.0,0.00579506]
[1673435620378,3.72807227,17447.0,17446.0,0.00579506]
[1673435620625,3.5851471,17447.0,17446.0,0.00579506]
[1673435620879,3.2985471,17447.0,17446.0,0.00579506]
[1673435621166,3.84269364,17447.0,17446.0,0.00579506]
[1673435621903,3.41343996,17447.0,17446.0,0.00579506]
[1673435622936,3.57623996,17447.0,17446.0,0.00579506]
[1673435623190,3.93519496,17447.0,17446.0,0.00579506]
[1673435623433,3.64861496,17447.0,17446.0,0.00579506]
[1673435623934,3.8203021,17447.0,17446.0,0.00579506]
[1673435624180,3.9631831,17447.0,17446.0,0.00579506]
[1673435624437,3.8203021,17447.0,17446.0,0.00579506]
[1673435624693,3.964017,17447.0,17446.0,0.00579506]
[1673435625761,3.605062,17447.0,17446.0,0.00579506]
[1673435626014,3.71878688,17447.0,17446.0,0.00579506]
[1673435626276,3.28953422,17447.0,17446.0,0.00579506]
[1673435628812,3.46115398,17447.0,17446.0,0.00579506]
[1673435629112,2.39164419,17447.0,17446.0,0.65286792]
[1673435629343,2.13420339,17447.0,17446.0,0.65286792]
[1673435630615,2.39164419,17447.0,17446.0,0.65286792]
[1673435632920,1.97140339,17447.0,17446.0,0.65286792]
[1673435633171,2.22884419,17447.0,17446.0,0.65286792]
[1673435634721,1.97140339,17447.0,17446.0,0.65286792]
[1673435639517,2.22884419,17447.0,17446.0,0.65286792]
[1673435639770,1.97140339,17447.0,17446.0,0.65286792]
[1673435641318,1.96973439,17447.0,17446.0,0.00579506]
[1673435641574,2.65321513,17447.0,17446.0,0.00579506]
[1673435642834,2.22717519,17447.0,17446.0,0.00579506]
[1673435644864,2.65325777,17447.0,17446.0,0.00579506]
[1673435647435,2.653215,17447.0,17446.0,0.00579506]
[1673435648208,2.22717519,17447.0,17446.0,0.00579506]
[1673435651014,2.65325777,17447.0,17446.0,0.00579506]
[1673435652795,2.22717519,17447.0,17446.0,0.00579506]
[1673435653347,2.65321487,17447.0,17446.0,0.00579506]
[1673435653797,2.82502232,17447.0,17446.0,0.00579506]
[1673435657972,2.9968352,17447.0,17446.0,0.00579506]
[1673435659045,3.14356905,17447.0,17446.0,0.00579506]
[1673435660230,2.82521225,17447.0,17446.0,0.00579506]
[1673435660381,2.9968352,17447.0,17446.0,0.00579506]
[1673435660635,2.82521088,17447.0,17446.0,0.00579506]
[1673435662119,2.82525378,17447.0,17446.0,0.00579506]
[1673435662354,2.22750397,17447.0,17446.0,0.00579506]
[1673435663134,2.3991712,17447.0,17446.0,0.00579506]
[1673435663369,2.57093167,17447.0,17446.0,0.00579506]
[1673435663854,2.3991712,17447.0,17446.0,0.00579506]
[1673435664337,2.57093997,17447.0,17446.0,0.00579506]
[1673435665080,2.82525378,17447.0,17446.0,0.00579506]
[1673435665562,2.3991712,17447.0,17446.0,0.00579506]
[1673435666032,1.68895623,17447.0,17446.0,0.56783905]
[1673435666336,1.43132687,17447.0,17446.0,1.71469193]
[1673435666557,1.43132687,17447.0,17446.0,2.07364693]
[1673435666800,1.43132687,17447.0,17446.0,1.71469193]
[1673435667286,1.43132687,17447.0,17446.0,2.07364693]
[1673435667528,1.43132687,17447.0,17446.0,1.71469193]
[1673435667766,1.43132687,17447.0,17446.0,2.07364693]
[1673435668000,1.43132687,17447.0,17446.0,1.71469193]
[1673435668494,1.43132687,17447.0,17446.0,2.07364693]
[1673435668720,0.85816287,17447.0,17446.0,2.24556327]
[1673435668967,0.85816287,17447.0,17446.0,1.71469193]
[1673435669211,0.6863839,17447.0,17446.0,1.71469193]
[1673435669450,0.6863839,17447.0,17446.0,1.88660827]
[1673435669920,0.6863839,17447.0,17446.0,1.71469193]
[1673435671466,0.85816287,17447.0,17446.0,1.71469193]
[1673435671714,0.6863839,17447.0,17446.0,1.71469193]
[1673435677289,1.2595479,17447.0,17446.0,1.71469193]
[1673435677542,1.43132687,17447.0,17446.0,1.71469193]
[1673435677817,1.43132687,17447.0,17446.0,0.56783905]
[1673435685144,2.11503881,17447.0,17446.0,0.00579506]
[1673435686748,1.68895623,17447.0,17446.0,0.00579506]
[1673435687389,1.43132687,17447.0,17446.0,0.00579506]
[1673435696557,1.85740945,17447.0,17446.0,0.00579506]
[1673435697449,1.43132687,17447.0,17446.0,0.00579506]
[1673435699228,1.68895623,17447.0,17446.0,0.00579506]
[1673435699697,1.43132687,17447.0,17446.0,0.00579506]
[1673435699911,1.43132687,17447.0,17446.0,1.15264339]
[1673435701300,1.68895623,17447.0,17446.0,1.15264339]
[1673435701744,1.68895623,17447.0,17446.0,1.15061939]
[1673435701969,1.43132687,17447.0,17446.0,1.15061939]
[1673435705302,1.43132687,17447.0,17446.0,1.86350605]
[1673435705739,0.85816287,17447.0,17446.0,2.03542239]
[1673435707084,0.85816287,17447.0,17446.0,2.39437739]
[1673435707301,0.6863839,17447.0,17446.0,2.39437739]
[1673435707519,0.6863839,17447.0,17446.0,2.03542239]
[1673435707736,0.6863839,17447.0,17446.0,2.39437739]
[1673435708434,0.85816287,17447.0,17446.0,2.03542239]
[1673435709945,0.85816287,17447.0,17446.0,1.86350605]
[1673435711154,1.43132687,17447.0,17446.0,1.86350605]
[1673435711399,1.68895623,17447.0,17446.0,1.86350605]
[1673435711635,1.43132687,17447.0,17446.0,1.86350605]
[1673435713135,1.43132687,17447.0,17446.0,2.03542239]
[1673435713386,1.43132687,17447.0,17446.0,1.86350605]
[1673435713882,1.43132687,17447.0,17446.0,2.03542239]
[1673435714128,1.43132687,17447.0,17446.0,1.86350605]
[1673435716167,1.43132687,17447.0,17446.0,2.03542239]
[1673435718971,1.43132687,17447.0,17446.0,1.86350605]
[1673435720310,1.68895623,17447.0,17446.0,1.86350605]
[1673435720561,1.43132687,17447.0,17446.0,1.86350605]
[1673435720817,1.54187481,17447.0,17446.0,1.15061939]
[1673435721090,2.11503881,17447.0,17446.0,0.00377106]
[1673435721363,1.68895623,17447.0,17446.0,0.00377106]
[1673435721611,2.11503881,17447.0,17446.0,0.00377106]
[1673435724147,2.82444478,17447.0,17446.0,0.00377106]
[1673435729001,3.60984084,17447.0,17446.0,0.00377106]
[1673435729276,3.26641363,17447.0,17446.0,0.00365459]
[1673435731160,3.6098845,17447.0,17446.0,0.00365459]
[1673435734481,3.8964745,17447.0,17446.0,0.00365459]
[1673435735266,3.6098845,17447.0,17446.0,0.00365459]
[1673435735531,3.8964745,17447.0,17446.0,0.00365459]
[1673435736054,3.9113963,17447.0,17446.0,0.00365459]
[1673435737915,3.76375401,17447.0,17446.0,0.00365459]
[1673435739222,4.02121057,17447.0,17446.0,0.00365459]
[1673435739450,3.76375401,17447.0,17446.0,0.00365459]
[1673435739681,3.91084092,17447.0,17446.0,0.00365459]
[1673435740450,3.76375401,17447.0,17446.0,0.00365459]
[1673435740714,3.9108336,17447.0,17446.0,0.00365459]
[1673435743480,3.91744188,17447.0,17446.0,0.00365459]
[1673435743736,4.44824593,17447.0,17446.0,0.00365459]
[1673435744247,3.96021547,17447.0,17446.0,0.00365459]
[1673435745010,3.66021547,17447.0,17446.0,0.00365459]
[1673435745530,3.96021547,17447.0,17446.0,0.00365459]
[1673435746285,3.67361547,17447.0,17446.0,0.00365459]
[1673435746543,3.96023547,17447.0,17446.0,0.00365459]
[1673435749411,3.96873547,17447.0,17446.0,0.00365459]
[1673435749623,3.66873547,17447.0,17446.0,0.00365459]
[1673435749878,4.01192045,17447.0,17446.0,0.00365459]
[1673435750137,4.01192045,17447.0,17446.0,0.00359437]
[1673435750395,3.39446055,17447.0,17446.0,0.00359437]
[1673435750659,3.89023749,17447.0,17446.0,0.00359437]
[1673435751170,3.60361749,17447.0,17446.0,0.00359437]
[1673435751406,3.89023749,17447.0,17446.0,0.00359437]
[1673435754237,3.93342507,17447.0,17446.0,0.00359437]
[1673435756266,3.93339507,17447.0,17446.0,0.00359437]
[1673435756808,3.64680507,17447.0,17446.0,0.00359437]
[1673435757099,3.32793424,17447.0,17446.0,0.00359437]
[1673435762308,3.75718792,17447.0,17446.0,0.00359437]
[1673435763222,3.49972548,17447.0,17446.0,0.00359437]
[1673435764227,3.75727288,17447.0,17446.0,0.00359437]
[1673435764484,3.49972548,17447.0,17446.0,0.00359437]
[1673435768291,3.28804768,17447.0,17446.0,0.00359437]
[1673435768514,3.14077048,17447.0,17446.0,0.00359437]
[1673435768767,3.28804874,17447.0,17446.0,0.00359437]
[1673435769024,3.64700469,17447.0,17446.0,0.00359437]
[1673435769275,3.64700487,17447.0,17446.0,0.00359437]
[1673435769842,3.93360487,17447.0,17446.0,0.00359437]
[1673435770565,3.93358487,17447.0,17446.0,0.00359437]
[1673435772084,3.78630548,17447.0,17446.0,0.00359437]
[1673435772335,3.42735048,17447.0,17446.0,0.00359437]
[1673435772834,3.93326143,17447.0,17446.0,0.00359437]
[1673435774035,3.93327143,17447.0,17446.0,0.00359437]
[1673435775286,3.78631548,17447.0,17446.0,0.00359437]
[1673435776823,3.25567747,17447.0,17446.0,0.00359437]
[1673435777807,3.61463247,17447.0,17446.0,0.00359437]
[1673435778056,3.25567747,17447.0,17446.0,0.00359437]
[1673435785207,2.96908747,17447.0,17446.0,0.00359437]
[1673435785416,3.25566747,17447.0,17446.0,0.00359437]
[1673435785915,3.61462247,17447.0,17446.0,0.00359437]
[1673435786410,3.25567747,17447.0,17446.0,0.00359437]
[1673435788618,3.68493115,17447.0,17446.0,0.00359437]
[1673435789104,3.61463247,17447.0,17446.0,0.00359437]
[1673435789349,3.61464671,17447.0,17446.0,0.00359437]
[1673435789593,3.25569171,17447.0,17446.0,0.00359437]
[1673435789866,3.42736048,17447.0,17446.0,0.00359437]
[1673435790124,3.57511983,17447.0,17446.0,0.00359437]
[1673435790922,3.93407483,17447.0,17446.0,0.00359437]
[1673435791404,3.64748483,17447.0,17446.0,0.00359437]
[1673435791683,3.93408483,17447.0,17446.0,0.00359437]
[1673435791926,3.57512983,17447.0,17446.0,0.00359437]
[1673435792668,3.93408483,17447.0,17446.0,0.00359437]
[1673435792943,3.59089725,17447.0,17446.0,0.00348362]
[1673435794499,3.16164357,17447.0,17446.0,0.00348362]
[1673435795502,3.591101,17447.0,17446.0,0.00348362]
[1673435795757,3.16164357,17447.0,17446.0,0.00348362]
[1673435796743,3.15664357,17447.0,17446.0,0.00348362]
[1673435797587,2.88797357,17447.0,17446.0,0.00348362]
[1673435797821,2.84708467,17447.0,17446.0,0.00348362]
[1673435798069,3.11574467,17447.0,17446.0,0.00348362]
[1673435798315,0.78409966,17446.0,17445.0,0.07740846]
[1673435798560,2.48985354,17446.0,17445.0,0.07740846]
[1673435798801,3.27729254,17446.0,17445.0,0.07740846]
[1673435799297,2.9577658,17446.0,17445.0,0.07740846]
[1673435799553,2.9607658,17446.0,17445.0,0.07940846]
[1673435800383,3.13253319,17446.0,17445.0,0.07940846]
[1673435801397,2.96075322,17446.0,17445.0,0.07940846]
[1673435801656,3.13253319,17446.0,17445.0,0.07940846]
[1673435802910,3.29673319,17446.0,17445.0,0.07940846]
[1673435803415,3.12495327,17446.0,17445.0,0.07940846]
[1673435803934,2.52709614,17446.0,17445.0,0.07940846]
[1673435804200,2.69887069,17446.0,17445.0,0.07940846]
[1673435804921,2.8706324,17446.0,17445.0,0.07940846]
[1673435805409,2.52709598,17446.0,17445.0,0.07940846]
[1673435805656,2.95317856,17446.0,17445.0,0.07940846]
[1673435806184,2.52709598,17446.0,17445.0,0.07940846]
[1673435806680,2.95317856,17446.0,17445.0,0.07940846]
[1673435807426,3.29671498,17446.0,17445.0,0.07940846]
[1673435808403,2.95317856,17446.0,17445.0,0.07940846]
[1673435809151,3.29671498,17446.0,17445.0,0.07940846]
[1673435809407,3.12495327,17446.0,17445.0,0.07940846]
[1673435812144,2.22710725,17446.0,17445.0,0.07940846]
[1673435813900,2.65318983,17446.0,17445.0,0.07940846]
[1673435814158,2.22710725,17446.0,17445.0,0.07940846]
[1673435814668,2.65318983,17446.0,17445.0,0.07940846]
[1673435815681,2.82495327,17446.0,17445.0,0.07940846]
[1673435816669,2.65318547,17446.0,17445.0,0.07940846]
[1673435816917,2.65306725,17446.0,17445.0,0.07940846]
[1673435818625,2.22698467,17446.0,17445.0,0.07940846]
[1673435820342,2.65306725,17446.0,17445.0,0.07940846]
[1673435822362,2.22698467,17446.0,17445.0,0.07940846]
[1673435822902,2.48886725,17446.0,17445.0,0.07940846]
[1673435824995,2.83240367,17446.0,17445.0,0.07940846]
[1673435825285,2.48886725,17446.0,17445.0,0.07940846]
[1673435825535,2.83240367,17446.0,17445.0,0.07940846]
[1673435825781,2.66063505,17446.0,17445.0,0.07940846]
[1673435826243,2.83242104,17446.0,17445.0,0.07940846]
[1673435826506,2.83242097,17446.0,17445.0,0.07940846]
[1673435826991,2.48888455,17446.0,17445.0,0.07940846]
[1673435827485,2.83242097,17446.0,17445.0,0.07940846]
[1673435827984,2.66063505,17446.0,17445.0,0.07940846]
[1673435828235,2.48889063,17446.0,17445.0,0.07940846]
[1673435837152,2.66063505,17446.0,17445.0,0.07940846]
[1673435844545,2.66063505,17446.0,17445.0,1.22634327]
[1673435844771,2.66063505,17446.0,17445.0,0.07940846]
[1673435858216,2.54958188,17446.0,17445.0,0.07932374]
[1673435858498,2.97900241,17446.0,17445.0,0.07932374]
[1673435859737,2.83241497,17446.0,17445.0,0.07932374]
[1673435860007,2.66068329,17446.0,17445.0,0.07932374]
[1673435864246,2.66068329,17446.0,17445.0,1.22626362]
[1673435864495,2.66068329,17446.0,17445.0,0.07932374]
[1673435865247,2.06288481,17446.0,17445.0,1.22626426]
[1673435870270,2.40642123,17446.0,17445.0,0.07932374]
[1673435870515,2.06288481,17446.0,17445.0,1.22625456]
[1673435875463,2.06288481,17446.0,17445.0,0.07932374]
[1673435875719,2.48896739,17446.0,17445.0,0.07932374]
[1673435876835,2.83250381,17446.0,17445.0,0.07932374]
[1673435877092,2.53639402,17446.0,17445.0,0.07932374]
[1673435877350,2.7081288,17446.0,17445.0,0.07932374]
[1673435877579,2.87992988,17446.0,17445.0,0.07932374]
[1673435877825,2.53639346,17446.0,17445.0,0.07932374]
[1673435878840,2.87992988,17446.0,17445.0,0.07932374]
[1673435879091,2.53639346,17446.0,17445.0,0.07932374]
[1673435880074,2.7081288,17446.0,17445.0,0.07932374]
[1673435881058,2.5363927,17446.0,17445.0,0.07932374]
[1673435881570,2.87992912,17446.0,17445.0,0.07932374]
[1673435882079,2.87992912,17446.0,17445.0,0.07907012]
[1673435882328,2.7081288,17446.0,17445.0,0.07907012]
[1673435882584,2.87992907,17446.0,17445.0,0.07907012]
[1673435883082,2.53639441,17446.0,17445.0,0.07907012]
[1673435883329,2.7081288,17446.0,17445.0,0.07907012]
[1673435883711,2.87992976,17446.0,17445.0,0.07907012]
[1673435884937,2.7081288,17446.0,17445.0,0.07907012]
[1673435885696,2.87992826,17446.0,17445.0,0.07907012]
[1673435885945,2.53639184,17446.0,17445.0,0.07907012]
[1673435886976,2.53639184,17446.0,17445.0,1.22600239]
[1673435887198,2.11030926,17446.0,17445.0,1.22600239]